bitfinex/quotes_ETHUSD_20260102
["timestamp","ask_amount","ask_price","bid_price","bid_amount"]
[1767395103857,2.4292779,3135.1,3134.4,0.87335336]
[1767395104177,2.4272779,3134.9,3134.4,1e-08]
[1767395104480,2.98898496,3134.8,3134.4,1e-08]
[1767395105145,0.002,3135.1,3134.4,2.36644655]
[1767395105345,3.19170121,3135.1,3134.5,2.36644654]
[1767395105752,2.4272779,3135.0,3134.4,1e-08]
[1767395106245,2.4272779,3134.8,3134.4,1e-08]
[1767395108476,5.61737583,3134.7,3134.4,1e-08]
[1767395108681,6.49810285,3134.7,3134.4,1e-08]
[1767395108897,2.4272779,3134.6,3134.4,1e-08]
[1767395111187,3.19030148,3134.5,3134.4,1e-08]
[1767395111496,5.61757938,3134.5,3134.4,1e-08]
[1767395111691,2.4272779,3134.5,3134.4,1e-08]
[1767395111855,3.07710295,3134.5,3134.4,1e-08]
[1767395113682,6.49813645,3134.7,3134.4,1e-08]
[1767395114054,3.30800492,3134.7,3134.4,1e-08]
[1767395114581,0.88072702,3134.7,3134.4,1e-08]
[1767395117799,0.002,3135.0,3134.4,1e-08]
[1767395118004,0.002,3135.0,3134.6,2.36644654]
[1767395118964,3.19139856,3135.4,3134.7,2.36644654]
[1767395119582,5.61867646,3135.4,3134.7,2.36644654]
[1767395120690,0.002,3135.4,3134.9,5.92087279]
[1767395120892,0.002,3135.4,3135.0,2.36644654]
[1767395122867,0.002,3135.4,3135.0,5.55622791]
[1767395126418,0.002,3135.4,3135.0,2.36644654]
[1767395126601,0.002,3135.4,3135.0,3.36121936]
[1767395127378,0.002,3135.4,3135.0,5.55622989]
[1767395127781,0.002,3135.4,3135.0,2.36644654]
[1767395128094,0.002,3135.4,3135.0,5.55617019]
[1767395128593,0.002,3135.4,3135.1,2.28671593]
[1767395129397,3.18900121,3135.8,3135.1,2.28671593]
[1767395129398,2.30041146,3136.3,3135.3,2.39308168]
[1767395129570,2.29841146,3136.2,3135.2,0.22867159]
[1767395129780,2.29841146,3136.2,3135.3,0.837]
[1767395130189,0.002,3135.4,3135.3,0.837]
[1767395132007,2.30041146,3135.4,3135.1,0.837]
[1767395133095,2.30041146,3135.4,3135.0,0.001]
[1767395133943,2.29841146,3135.3,3135.0,0.001]
[1767395134815,2.29841146,3135.3,3134.1,2.39308168]
[1767395134995,2.29841146,3135.3,3134.2,4.02753742]
[1767395135315,2.29841146,3135.3,3134.2,6.42066037]
[1767395135516,2.29841146,3135.3,3134.4,2.39308168]
[1767395135723,2.29841146,3135.1,3134.4,2.39308168]
[1767395137912,4.08056391,3135.2,3134.4,2.39308168]
[1767395138125,2.29841146,3135.3,3134.5,2.39308168]
[1767395139200,2.29841146,3135.3,3134.6,5.58328138]
[1767395139600,2.29841146,3135.3,3134.7,2.39308168]
[1767395139824,5.48791353,3135.3,3134.7,2.39308168]
[1767395139992,2.29841146,3135.2,3134.6,3.1901997]
[1767395140196,2.29841146,3135.2,3134.2,3.19053033]
[1767395140427,2.29841146,3135.1,3134.2,3.19053033]
[1767395140630,2.29841146,3135.1,3134.3,4.02746747]
[1767395142637,2.29841146,3134.9,3134.3,0.837]
[1767395143000,2.29841146,3134.9,3134.3,4.02749505]
[1767395143928,2.29841146,3134.9,3134.3,0.837]
[1767395144131,2.29841146,3134.8,3134.0,0.001]
[1767395144428,2.29841146,3134.8,3134.0,4.02874079]
[1767395144618,2.29841146,3134.8,3134.3,0.001]
[1767395144619,2.29841146,3134.7,3134.3,0.001]
[1767395146129,3.19002286,3134.8,3134.3,0.001]
[1767395146825,6.35613624,3134.9,3134.3,0.001]
[1767395147227,9.54607316,3134.9,3134.3,0.001]
[1767395147430,0.95460732,3134.8,3134.3,0.001]
[1767395149334,6.44310399,3134.8,3134.3,0.001]
[1767395150107,3.25301878,3134.8,3134.3,0.001]
[1767395150626,5.48842487,3134.8,3134.3,0.001]
[1767395151209,2.29841146,3134.8,3134.3,0.001]
[1767395151417,3.18983775,3135.0,3134.3,2.39408168]
[1767395151829,5.48824921,3135.0,3134.3,2.39408168]
[1767395152624,8.67808696,3135.0,3134.3,2.39408168]
[1767395152818,0.8680087,3134.9,3134.3,2.39408168]
[1767395153019,3.16642016,3134.9,3134.3,2.39408168]
[1767395153246,3.16642016,3134.9,3134.3,0.001]
[1767395153941,5.48840763,3134.8,3134.3,0.001]
[1767395154415,2.29841146,3134.7,3134.3,0.001]
[1767395156238,5.48853404,3134.7,3134.3,0.001]
[1767395156465,6.4431792,3134.7,3134.3,0.001]
[1767395156737,2.29841146,3134.6,3134.3,0.001]
[1767395157127,4.14476774,3134.7,3134.3,0.001]
[1767395158234,0.95464516,3134.7,3134.3,0.001]
[1767395158438,3.19004015,3134.8,3134.3,0.001]
[1767395158638,5.48845161,3134.8,3134.3,0.001]
[1767395161226,5.48845161,3134.8,3133.7,2.46660326]
[1767395161227,2.4798903,3134.6,3133.7,2.46660326]
[1767395161532,4.05792572,3134.9,3134.1,2.46560326]
[1767395161736,3.18991702,3134.9,3134.2,2.46560326]
[1767395163451,8.85947562,3135.0,3134.2,2.46560326]
[1767395164254,2.4798903,3134.9,3134.0,2.46560326]
[1767395165551,2.4798903,3134.7,3134.0,2.46560326]
[1767395167137,6.55606396,3134.7,3134.0,2.46560326]
[1767395167447,6.55606396,3134.7,3134.1,0.001]
[1767395167825,6.55606396,3134.7,3134.1,2.46660326]
[1767395168027,4.07617366,3134.7,3134.1,2.46660326]
[1767395168446,6.55606396,3134.7,3134.1,0.001]
[1767395168829,4.07617366,3134.7,3134.1,2.46660326]
[1767395172167,0.002,3135.0,3134.1,0.001]
[1767395172352,2.4798903,3134.8,3134.1,0.001]
[1767395172661,2.4798903,3134.8,3134.1,1.50917072]
[1767395173166,2.4798903,3134.8,3134.1,0.55173818]
[1767395173344,5.66995154,3134.8,3134.1,0.55173818]
[1767395173664,5.66995154,3134.8,3134.0,5.65641267]
[1767395173863,2.4798903,3134.7,3134.0,2.46560326]
[1767395174462,2.4798903,3134.7,3133.9,0.837]
[1767395174649,2.4798903,3134.3,3133.7,0.001]
[1767395175528,2.4798903,3134.2,3133.7,0.001]
[1767395177535,5.67052531,3134.2,3133.7,0.001]
[1767395177844,2.4798903,3134.1,3133.7,0.001]
[1767395178991,2.4798903,3134.0,3133.7,0.001]
[1767395179164,2.4798903,3134.0,3133.5,0.001]
[1767395179541,2.4798903,3133.9,3133.5,0.001]
[1767395181148,2.4798903,3133.8,3133.5,0.001]
[1767395182640,3.19075459,3134.1,3133.5,0.001]
[1767395182840,2.4798903,3134.0,3133.5,0.001]
[1767395190078,5.605838,3134.2,3133.5,0.001]
[1767395190598,2.41519644,3134.1,3132.9,0.838]
[1767395190753,2.41519644,3134.1,3132.9,0.001]
[1767395190953,2.41519644,3134.1,3133.0,2.43901578]
[1767395191151,3.1910141,3133.8,3133.0,2.43901578]
[1767395192276,3.1910141,3133.8,3133.1,2.46993305]
[1767395192484,3.1910141,3133.8,3133.5,0.001]
[1767395192697,3.1910141,3133.8,3133.1,2.46993305]
[1767395192979,3.1910141,3133.8,3133.1,2.43801578]
[1767395193372,2.41519644,3133.8,3133.1,2.43801578]
[1767395195083,2.41519644,3133.8,3133.2,2.43801578]
[1767395195682,2.41519644,3133.8,3133.2,5.62962887]
[1767395196491,2.41519644,3133.8,3133.2,2.43801578]
[1767395198386,2.41519644,3133.8,3133.2,5.62963097]
[1767395199288,5.60621425,3133.8,3133.2,2.43801578]
[1767395199489,5.60621425,3133.8,3133.2,3.05740638]
[1767395199982,0.839,3134.2,3133.3,2.43801578]
[1767395199983,3.19095142,3133.9,3133.3,2.43801578]
[1767395201387,5.6060069,3134.0,3133.3,2.43801578]
[1767395202290,0.002,3133.8,3133.3,2.43801578]
[1767395206681,0.002,3133.8,3133.3,5.66145245]
[1767395206884,0.002,3133.8,3133.3,6.60880942]
[1767395208291,0.002,3133.8,3133.3,6.57689419]
[1767395208478,0.002,3133.8,3133.3,3.38537275]
[1767395208813,0.002,3133.8,3133.3,6.57688827]
[1767395209104,0.002,3133.8,3133.3,3.38537275]
[1767395210208,0.002,3133.8,3133.3,6.57687366]
[1767395210409,0.002,3133.8,3133.4,0.80332643]
[1767395210603,0.002,3133.8,3133.4,3.24134221]
[1767395212779,0.002,3133.8,3133.4,0.80332643]
[1767395212982,2.41719644,3133.8,3133.2,0.837]
[1767395213214,2.41719644,3133.8,3133.1,0.001]
[1767395213515,2.41719644,3133.8,3133.1,3.19272432]
[1767395214016,2.41719644,3133.8,3133.1,0.001]
[1767395214716,2.41519644,3133.6,3133.1,0.001]
[1767395216817,2.41519644,3133.5,3133.1,0.001]
[1767395217116,2.41519644,3133.5,3132.9,0.001]
[1767395219182,2.41519644,3133.3,3132.9,0.001]
[1767395221224,5.67027902,3133.2,3132.9,0.001]
[1767395221393,2.47865385,3133.1,3132.9,0.001]
[1767395223915,5.67042981,3133.1,3132.9,0.001]
[1767395226419,2.47865385,3133.1,3132.9,0.001]
[1767395226613,3.19166968,3133.2,3132.9,0.001]
[1767395230408,3.19133906,3133.5,3132.9,2.39525371]
[1767395230607,0.40712802,3133.4,3132.9,2.39525371]
[1767395230792,6.78997092,3133.4,3132.9,2.39525371]
[1767395231398,2.47865385,3133.3,3132.9,0.001]
[1767395231631,6.38325034,3133.2,3132.9,0.001]
[1767395232204,3.19362517,3133.2,3132.9,0.001]
[1767395232404,4.12072048,3133.2,3132.9,0.001]
[1767395234036,6.59937433,3133.2,3132.9,0.001]
[1767395235246,0.92909531,3133.2,3132.9,0.001]
[1767395235420,0.002,3133.2,3132.9,2.39525371]
[1767395241809,0.002,3133.2,3133.0,2.39425371]
[1767395244122,0.002,3133.2,3133.1,2.39425371]
[1767395249847,5.62318117,3133.8,3133.1,5.58598075]
[1767395250049,5.62318117,3133.8,3133.2,2.83242609]
[1767395250050,0.002,3133.8,3133.2,2.83242609]
[1767395251251,0.002,3133.8,3133.2,6.02403449]
[1767395251441,0.002,3133.8,3133.3,2.27382801]
[1767395252654,2.31902888,3133.8,3133.2,0.55859808]
[1767395253423,3.19111593,3133.7,3133.1,3.11082801]
[1767395253756,5.50814481,3133.7,3133.1,3.11082801]
[1767395255855,5.50814481,3133.7,3133.1,2.27382801]
[1767395256957,5.51014481,3133.7,3133.1,2.27382801]
[1767395258646,2.31702888,3133.6,3133.0,0.838]
[1767395258842,2.31702888,3133.6,3133.0,0.001]
[1767395259053,5.50827164,3133.6,3133.0,0.001]
[1767395260030,2.31702888,3133.5,3133.0,0.001]
[1767395261161,2.31702888,3133.5,3133.0,0.63157384]
[1767395261659,2.31702888,3133.5,3133.0,0.001]
[1767395263438,5.51019149,3133.7,3133.0,2.27482801]
[1767395263641,2.31902888,3133.7,3133.0,2.27482801]
[1767395264364,5.51014552,3133.7,3133.0,2.27482801]
[1767395264864,0.002,3133.5,3133.0,2.27482801]
[1767395265066,0.002,3133.5,3133.1,0.63046661]
[1767395265359,0.002,3133.5,3133.0,2.27482801]
[1767395266348,2.31902888,3133.5,3133.0,0.001]
[1767395268054,3.19142145,3133.4,3133.0,0.001]
[1767395268265,5.50845033,3133.4,3133.0,0.001]
[1767395269863,2.31702888,3133.4,3133.0,0.001]
[1767395272847,5.50847909,3133.4,3133.0,0.001]
[1767395273590,2.31702888,3133.3,3132.8,0.001]
[1767395273758,7.25307294,3133.4,3132.2,2.27482801]
[1767395273759,2.31702888,3133.0,3132.2,2.27482801]
[1767395273951,2.31702888,3133.0,3132.3,2.27482801]
[1767395274279,2.31702888,3133.0,3132.3,5.46736519]
[1767395274671,5.5088881,3133.0,3132.3,5.46736519]
[1767395274863,2.31702888,3133.0,3132.3,5.46736519]
[1767395275175,5.50887184,3133.0,3132.3,5.46736519]
[1767395275477,2.31702888,3133.0,3132.4,2.27482801]
[1767395275852,5.50890142,3133.0,3132.4,2.27482801]
[1767395276077,3.18709188,3132.9,3132.4,0.001]
[1767395276381,5.50906156,3132.8,3132.3,0.001]
[1767395276603,2.31702888,3132.8,3132.3,0.001]
[1767395278285,3.19165218,3133.2,3132.3,0.001]
[1767395278286,5.50893461,3133.0,3132.3,0.001]
[1767395278485,2.31702888,3132.9,3132.3,0.001]
[1767395280697,3.19179257,3133.1,3132.3,2.95419846]
[1767395281195,5.57520912,3133.1,3132.3,2.95419846]
[1767395281397,2.38341655,3133.0,3132.3,2.40725544]
[1767395285078,5.57530726,3133.0,3132.3,2.40725544]
[1767395286296,5.57530726,3133.0,3132.3,0.001]
[1767395286297,2.38341655,3132.9,3132.3,0.001]
[1767395286896,5.57544923,3132.8,3132.3,0.001]
[1767395287097,2.38341655,3132.6,3132.1,0.001]
[1767395289309,0.87674311,3132.7,3132.1,2.40725544]
[1767395289819,4.06887875,3132.7,3132.1,2.40725544]
[1767395290181,0.87674311,3132.7,3132.1,2.40725544]
[1767395290383,3.19200626,3132.9,3132.1,2.40725544]
[1767395291083,3.1918682,3133.0,3132.1,2.40725544]
[1767395291303,3.19172704,3133.1,3132.3,2.40625544]
[1767395291500,5.57506942,3133.2,3132.5,2.40625544]
[1767395291801,6.21979361,3133.2,3132.5,2.40625544]
[1767395292186,3.02814074,3133.2,3132.5,2.40625544]
[1767395293111,6.21977482,3133.2,3132.5,2.40625544]
[1767395293409,3.83635827,3133.2,3132.5,2.40625544]
[1767395294010,3.83635827,3133.2,3132.5,5.59856068]
[1767395294624,2.38341655,3133.3,3132.6,2.40625544]
[1767395294777,0.002,3133.4,3132.6,2.40625544]
[1767395296102,0.002,3133.4,3132.8,2.40625544]
[1767395297488,2.38541655,3133.4,3132.7,0.838]
[1767395298416,2.38341655,3133.3,3132.7,0.838]
[1767395298620,2.38341655,3133.3,3132.7,1.48174537]
[1767395300320,2.38341655,3133.3,3132.7,0.838]
[1767395301190,2.38341655,3133.3,3132.7,6.43638855]
[1767395301391,2.38341655,3133.3,3132.7,4.03013311]
[1767395302400,0.002,3133.3,3132.8,2.40625544]
[1767395302724,0.002,3133.3,3132.9,2.40625544]
[1767395302892,0.002,3133.5,3133.2,2.40625544]
[1767395305404,0.002,3133.5,3133.2,3.19160971]
[1767395305601,0.002,3133.5,3133.3,2.40625544]
[1767395305817,0.002,3133.5,3133.1,5.5979363]
[1767395306705,0.002,3133.5,3133.1,2.40625544]
[1767395308206,0.002,3133.5,3132.9,6.65132166]
[1767395308393,0.002,3133.5,3133.0,0.66513217]
[1767395308996,0.002,3133.5,3133.1,2.49469116]
[1767395310200,0.002,3133.5,3133.0,0.66513217]
[1767395311302,0.002,3133.5,3133.0,3.85695413]
[1767395311744,0.002,3133.5,3133.0,0.66513217]
[1767395314041,2.35793922,3133.5,3132.9,1.80173365]
[1767395314214,2.35793922,3133.5,3132.8,4.02898803]
[1767395315024,2.35793922,3133.5,3132.8,6.38162924]
[1767395315337,2.35793922,3133.5,3132.8,4.02898803]
[1767395316034,2.35793922,3133.5,3132.8,6.38162924]
[1767395318346,2.35793922,3133.5,3132.8,4.02898803]
[1767395318656,2.35793922,3133.5,3132.9,2.35264121]
[1767395319151,2.35793922,3133.5,3132.9,5.54450818]
[1767395319339,0.002,3133.5,3132.9,5.54450818]
[1767395319540,0.002,3133.5,3133.0,2.35264121]
[1767395320924,0.002,3133.5,3133.1,5.54436825]
[1767395324637,0.002,3133.5,3133.2,2.35264121]
[1767395327254,2.35793922,3133.5,3132.8,0.001]
[1767395328440,2.35593922,3133.4,3132.8,0.001]
[1767395329633,5.54742508,3133.4,3132.8,0.001]
[1767395329834,6.42149192,3133.4,3132.8,0.001]
[1767395331261,2.35593922,3133.3,3132.8,0.001]
[1767395335162,0.87406684,3133.4,3132.8,2.35364121]
[1767395335464,0.002,3133.5,3132.8,2.35364121]
[1767395336062,0.002,3133.3,3132.8,2.35364121]
[1767395336261,0.002,3133.3,3132.9,2.35264121]
[1767395336866,0.002,3133.3,3132.8,3.31115145]
[1767395337050,0.002,3133.3,3133.0,3.19182891]
[1767395337365,0.002,3133.3,3132.9,5.54453709]
[1767395337739,0.002,3133.3,3132.9,2.35264121]
[1767395342465,0.002,3133.3,3132.9,5.54456992]
[1767395342665,0.002,3133.3,3133.0,2.38805584]
[1767395343343,0.002,3133.3,3132.9,4.14939372]
[1767395343970,0.002,3133.3,3133.0,2.38805584]
[1767395345673,0.002,3133.3,3132.9,0.95746501]
[1767395346572,0.002,3133.3,3132.8,6.41804034]
[1767395346758,0.002,3133.3,3132.8,2.38905584]
[1767395346963,0.002,3133.3,3132.8,3.22605584]
[1767395349472,0.002,3133.3,3132.8,2.38905584]
[1767395351076,2.28676609,3133.3,3132.8,0.001]
[1767395351263,2.28476609,3133.2,3132.4,3.19243003]
[1767395351574,0.64066392,3133.3,3132.3,2.38805584]
[1767395351575,3.83221356,3133.3,3132.3,2.38805584]
[1767395353579,3.83221356,3133.3,3132.4,3.1924403]
[1767395353778,0.93084069,3133.2,3132.5,2.38805584]
[1767395354183,2.28476609,3133.1,3132.3,3.19349665]
[1767395354680,2.28476609,3133.1,3132.3,5.58155249]
[1767395357285,2.28476609,3133.1,3132.3,8.77409471]
[1767395357666,2.28476609,3133.1,3132.3,5.58155249]
[1767395357869,2.28476609,3133.1,3132.4,2.38805584]
[1767395358170,2.92569126,3133.1,3132.4,2.38805584]
[1767395359374,2.92569126,3133.1,3132.4,5.58044918]
[1767395360389,6.11744095,3133.1,3132.4,5.58044918]
[1767395361363,6.11744095,3133.1,3132.4,5.58144918]
[1767395362294,2.28476609,3133.0,3132.4,5.58144918]
[1767395368799,2.28476609,3133.0,3132.4,0.001]
[1767395369099,2.38337184,3132.9,3132.4,0.001]
[1767395371103,2.41944315,3132.7,3132.4,0.001]
[1767395384023,2.41944315,3132.6,3132.4,0.001]
[1767395384305,2.41944315,3132.6,3132.1,0.001]
[1767395386315,2.41944315,3132.4,3132.1,0.001]
[1767395386617,0.56117815,3132.3,3132.1,0.001]
[1767395387316,0.56117815,3132.3,3131.8,2.35117396]
[1767395387495,2.41944315,3132.4,3131.8,2.35117396]
[1767395389240,5.61195406,3132.4,3131.8,2.35117396]
[1767395390117,2.41944315,3132.3,3131.7,0.839]
[1767395390410,2.41944315,3132.3,3131.7,0.001]
[1767395390617,2.41944315,3132.1,3131.7,0.001]
[1767395393015,5.61219816,3132.1,3131.7,0.001]
[1767395393692,2.41944315,3132.0,3131.7,0.001]
[1767395393898,2.41944315,3132.0,3131.8,0.001]
[1767395397529,6.49256374,3132.2,3131.8,0.001]
[1767395397727,0.64925637,3132.1,3131.8,0.001]
[1767395401319,6.25564997,3132.1,3131.8,0.001]
[1767395401631,6.25564997,3132.1,3131.4,3.1944367]
[1767395401632,2.41363323,3131.9,3131.4,0.001]
[1767395401840,3.84201674,3132.1,3131.4,2.43476403]
[1767395402047,0.79152236,3132.0,3131.4,2.43476403]
[1767395403715,3.98437723,3132.0,3131.4,2.43476403]
[1767395404411,0.79152236,3132.0,3131.4,2.43476403]
[1767395405809,0.64925637,3132.1,3131.5,2.43376403]
[1767395406010,3.1926869,3132.2,3131.5,2.43376403]
[1767395406547,3.19258569,3132.3,3131.5,2.43376403]
[1767395406715,2.41363323,3132.4,3131.6,2.43376403]
[1767395406908,3.19237437,3132.5,3131.8,2.43376403]
[1767395407236,5.60589369,3132.6,3131.8,2.43376403]
[1767395407404,0.56078937,3132.5,3131.8,2.43376403]
[1767395409034,0.56078937,3132.5,3131.9,2.43376403]
[1767395409208,2.41563323,3132.7,3131.9,2.43376403]
[1767395409209,3.19230502,3132.6,3131.9,2.43376403]
[1767395409827,5.60593825,3132.6,3131.9,2.43376403]
[1767395410537,0.002,3132.5,3131.9,2.43376403]
[1767395414041,0.002,3132.5,3132.0,2.43376403]
[1767395417651,0.002,3132.5,3132.0,5.62652122]
[1767395431138,2.36238708,3132.5,3131.9,3.19291574]
[1767395431355,2.36038708,3132.4,3131.9,3.19291574]
[1767395433077,2.36038708,3132.4,3131.8,0.001]
[1767395434771,2.36038708,3132.4,3131.8,2.48074167]
[1767395434948,2.36038708,3132.4,3131.9,3.19294996]
[1767395438852,2.36038708,3132.4,3131.8,3.19400378]
[1767395439251,2.36038708,3132.4,3131.8,0.001]
[1767395440177,2.36038708,3132.4,3131.8,3.19405191]
[1767395440347,2.36238708,3132.4,3131.8,3.19405191]
[1767395442948,2.36238708,3132.4,3131.8,5.67379358]
[1767395443677,0.002,3132.4,3131.8,5.67379358]
[1767395444057,0.002,3132.4,3131.8,8.86684549]
[1767395444451,0.002,3132.4,3131.8,5.67379358]
[1767395445661,2.36238708,3132.4,3131.8,3.19405191]
[1767395452363,2.36038708,3132.3,3131.8,0.001]
[1767395454900,0.002,3132.4,3131.9,2.47974167]
[1767395455102,0.002,3132.4,3132.0,2.51167015]
[1767395455483,0.002,3132.7,3132.3,2.47974167]
[1767395455683,0.002,3132.7,3132.3,2.06453192]
[1767395456568,0.002,3132.4,3132.3,2.06453192]
[1767395456768,0.002,3132.7,3132.3,2.06453192]
[1767395458485,0.002,3132.7,3132.3,5.25703779]
[1767395458671,0.002,3132.7,3132.3,2.06453192]
[1767395462094,0.002,3132.7,3132.1,5.52339139]
[1767395462396,0.002,3132.7,3132.2,0.89675004]
[1767395462899,0.002,3132.7,3132.2,3.22743261]
[1767395463895,0.002,3133.0,3132.3,2.33068257]
[1767395464100,0.002,3133.0,3132.4,5.52312287]
[1767395465374,0.002,3133.0,3132.4,2.33068257]
[1767395465769,2.33049085,3133.0,3132.4,2.33068257]
[1767395466197,5.52236545,3133.0,3132.4,2.33068257]
[1767395466574,5.5223322,3133.0,3132.4,2.33068257]
[1767395471179,0.002,3133.0,3132.5,2.33068257]
[1767395471904,3.19383145,3133.0,3132.5,2.33068257]
[1767395472206,2.33049085,3133.0,3132.3,5.52319355]
[1767395472405,2.33049085,3133.0,3132.3,6.5682595]
[1767395474806,5.52232067,3133.0,3132.3,6.5682595]
[1767395474978,5.52232067,3133.0,3132.3,5.52319355]
[1767395475182,5.52232067,3133.0,3132.3,2.33068257]
[1767395475504,2.32849085,3132.9,3132.2,0.838]
[1767395476812,5.52049845,3132.9,3132.1,6.36137215]
[1767395476996,2.32849085,3132.8,3132.1,6.36137215]
[1767395477190,2.32849085,3132.8,3132.1,0.838]
[1767395477527,2.32849085,3132.6,3131.8,0.001]
[1767395479006,2.32849085,3132.4,3131.8,0.001]
[1767395481512,2.32849085,3132.2,3131.8,0.001]
[1767395483993,5.52123693,3132.1,3131.8,0.001]
[1767395484194,6.07336062,3132.1,3131.8,0.001]
[1767395485825,2.32849085,3132.0,3131.4,0.001]
[1767395486325,6.93761585,3132.1,3131.8,0.001]
[1767395486326,5.52144081,3131.9,3131.8,0.001]
[1767395486721,5.52144081,3131.9,3131.4,0.001]
[1767395486923,6.44807187,3131.9,3131.4,0.001]
[1767395487307,3.25512191,3131.9,3131.4,0.001]
[1767395488432,6.4480889,3131.9,3131.4,0.001]
[1767395488628,3.25512191,3131.9,3131.4,0.001]
[1767395489528,6.44807332,3131.9,3131.4,0.001]
[1767395490198,0.96409246,3131.8,3131.4,0.001]
[1767395490828,4.1571474,3131.8,3131.4,0.001]
[1767395491527,0.96409246,3131.8,3131.4,0.001]
[1767395491827,2.35221314,3132.2,3131.4,2.41292144]
[1767395492020,5.54446191,3132.6,3131.7,2.41192144]
[1767395492330,2.35221314,3132.6,3131.8,2.41192144]
[1767395492633,5.54445609,3132.6,3131.8,2.41192144]
[1767395492930,5.54445609,3132.6,3131.8,5.60491738]
[1767395493725,0.002,3132.4,3131.8,5.60491738]
[1767395493928,0.002,3132.4,3131.9,2.41192144]
[1767395494429,0.002,3132.4,3131.8,7.34965489]
[1767395494430,2.35221314,3132.8,3132.2,2.41192144]
[1767395494613,5.54606467,3133.0,3132.2,2.41192144]
[1767395494802,0.55460647,3132.9,3132.3,2.41192144]
[1767395497942,2.35221314,3132.8,3132.1,2.41192144]
[1767395498233,2.35221314,3132.8,3132.1,5.60465753]
[1767395500540,5.54426275,3132.8,3132.1,5.60465753]
[1767395500715,2.35221314,3132.8,3132.1,5.60465753]
[1767395500920,2.35421314,3133.0,3132.2,2.41192144]
[1767395501310,2.35421314,3133.0,3132.1,4.42868058]
[1767395501311,2.35221314,3132.9,3132.1,4.42868058]
[1767395501511,2.35221314,3132.7,3132.1,3.19273609]
[1767395502330,2.35221314,3132.7,3132.1,5.60465753]
[1767395507512,2.35221314,3132.7,3132.1,3.19273609]
[1767395507718,2.35221314,3132.6,3131.9,0.001]
[1767395509378,0.002,3132.8,3131.9,3.56295224]
[1767395509648,2.35421314,3133.0,3132.2,3.56195224]
[1767395510014,0.002,3132.7,3132.2,3.56195224]
[1767395510415,0.002,3132.7,3132.0,0.9949044]
[1767395510649,2.35421314,3132.7,3132.0,0.9949044]
[1767395510943,2.35421314,3132.7,3132.1,0.45578566]
[1767395511115,2.35421314,3132.7,3132.2,0.838]
[1767395511316,2.35221314,3132.6,3132.0,0.9949044]
[1767395511514,2.35221314,3132.6,3132.1,3.19273677]
[1767395513038,2.35221314,3132.6,3132.0,3.19278796]
[1767395513440,2.35221314,3132.6,3131.9,0.001]
[1767395513622,2.35221314,3132.6,3131.9,1.07970333]
[1767395514224,2.35221314,3132.6,3131.9,0.001]
[1767395518344,2.35421314,3132.6,3131.9,0.001]
[1767395522047,2.35421314,3132.6,3131.9,2.47953288]
[1767395522249,2.35421314,3132.6,3131.9,0.001]
[1767395522559,0.002,3132.6,3132.0,2.47853288]
[1767395524831,2.38465374,3132.6,3132.0,2.47853288]
[1767395525043,3.26173702,3132.6,3132.0,5.67137644]
[1767395525765,3.26173702,3132.6,3132.0,2.47853288]
[1767395526647,6.45397491,3132.6,3132.0,2.47953288]
[1767395526964,2.38265374,3132.5,3132.0,0.001]
[1767395529947,5.57503286,3132.5,3132.0,0.001]
[1767395532044,2.38265374,3132.5,3132.0,0.001]
[1767395532770,5.57500085,3132.5,3132.0,0.001]
[1767395534364,2.38265374,3132.5,3132.0,0.001]
[1767395534763,0.87908328,3132.6,3132.0,0.001]
[1767395534960,0.002,3132.6,3132.0,0.001]
[1767395536045,3.1942376,3132.6,3132.0,0.001]
[1767395542072,5.57689134,3132.6,3132.0,0.001]
[1767395542280,2.38265374,3132.5,3132.0,0.001]
[1767395543212,2.38265374,3132.5,3131.9,0.001]
[1767395543393,2.38265374,3132.3,3131.9,0.001]
[1767395543774,2.38265374,3132.0,3131.4,0.001]
[1767395546677,5.57552447,3132.0,3131.4,0.001]
[1767395547403,2.38265374,3132.0,3131.4,0.001]
[1767395548591,5.57551501,3132.0,3131.4,0.001]
[1767395548791,6.45233158,3132.0,3131.4,0.001]
[1767395549816,2.33341956,3131.9,3131.4,0.001]
[1767395551491,2.33341956,3131.8,3131.4,0.001]
[1767395554686,2.33341956,3131.7,3131.4,0.001]
[1767395555087,2.33341956,3131.5,3131.2,0.001]
[1767395555320,0.55266754,3131.4,3131.2,0.001]
[1767395556220,2.33341956,3131.5,3131.2,0.001]
[1767395560020,2.33341956,3131.4,3131.1,0.001]
[1767395561898,5.52688434,3131.4,3131.1,0.001]
[1767395563436,2.33341956,3131.4,3131.1,0.001]
[1767395563605,6.39891245,3131.4,3131.1,0.001]
[1767395563805,2.33341956,3131.3,3131.1,0.001]
[1767395564620,2.33341956,3131.5,3131.1,0.001]
[1767395566643,5.52679125,3131.5,3131.1,0.001]
[1767395567014,2.33341956,3131.5,3131.1,0.001]
[1767395567604,5.52678336,3131.5,3131.1,0.001]
[1767395567839,2.33341956,3131.5,3131.1,0.001]
[1767395568136,5.52678106,3131.5,3131.1,0.001]
[1767395568339,5.52678106,3131.5,3130.9,0.001]
[1767395568340,2.88609767,3131.4,3130.9,0.001]
[1767395570013,3.1932787,3131.6,3130.9,2.2695813]
[1767395570014,5.52669826,3131.6,3130.9,2.2695813]
[1767395570522,2.33341956,3131.6,3130.9,2.2695813]
[1767395570720,0.838,3131.8,3130.9,2.2695813]
[1767395570721,3.17141956,3131.8,3130.9,2.2695813]
[1767395571314,5.52651424,3131.8,3130.9,2.2695813]
[1767395572637,5.52651424,3131.8,3131.1,2.2685813]
[1767395572938,0.55265142,3131.7,3131.1,2.2685813]
[1767395574225,2.33541956,3131.8,3131.1,2.2685813]
[1767395574741,2.33341956,3131.7,3130.8,0.001]
[1767395575152,2.46124918,3131.7,3130.8,0.001]
[1767395575758,2.46124918,3131.7,3130.7,0.001]
[1767395575759,0.7,3131.4,3130.7,0.001]
[1767395576061,2.33341956,3131.3,3130.7,0.001]
[1767395576744,2.33341956,3131.1,3130.5,0.001]
[1767395579144,3.19386777,3131.0,3130.5,0.001]
[1767395580550,2.34096865,3131.2,3130.5,0.001]
[1767395580779,3.19335781,3131.5,3130.5,2.74232579]
[1767395580978,3.19335781,3131.5,3130.5,2.71038202]